bitfinex-derivatives/quotes_ETHF0:USTF0_20250116
["timestamp","ask_amount","ask_price","bid_price","bid_amount"]
[1737055034519,0.001,3333.9,3333.8,5.27296324]
[1737055034725,0.001,3333.9,3333.8,4.06496324]
[1737055034927,0.001,3333.9,3333.8,5.27296324]
[1737055035128,0.60098,3333.9,3333.8,3.46496324]
[1737055035326,0.001,3333.9,3333.8,5.27296324]
[1737055035520,0.001,3333.9,3333.8,4.67296324]
[1737055035722,0.60098,3333.9,3333.8,5.27296324]
[1737055035922,0.001,3333.9,3333.8,5.27296324]
[1737055036425,0.001,3333.9,3333.8,5.27310625]
[1737055039523,0.60098,3333.9,3333.8,5.27310625]
[1737055039728,0.60098,3333.9,3333.8,1.46530625]
[1737055039926,0.001,3333.9,3333.8,2.06530625]
[1737055040326,0.001,3333.9,3333.8,5.27310625]
[1737055042130,0.001,3333.9,3333.8,5.27315118]
[1737055046039,0.001,3333.9,3333.8,5.2733959]
[1737055046838,0.001,3333.9,3333.8,5.2723959]
[1737055047432,0.001,3333.9,3333.8,7.55909652]
[1737055049039,0.6967,3334.3,3333.8,6.95909652]
[1737055049240,0.6967,3334.3,3334.2,6.09443062]
[1737055049540,0.6967,3334.3,3334.2,6.35202652]
[1737055049740,0.6967,3334.3,3334.2,6.35229301]
[1737055051334,0.7275,3334.7,3334.2,5.75236301]
[1737055051537,0.7545,3334.6,3334.3,0.85777239]
[1737055051941,1.33219,3334.4,3334.3,0.25786239]
[1737055052441,0.7323,3334.4,3333.8,4.4148]
[1737055052737,0.59992,3334.3,3334.1,0.59993]
[1737055053148,0.59991,3334.3,3334.1,0.59993]
[1737055053437,0.7323,3334.4,3334.0,1.207]
[1737055053737,0.7323,3334.4,3334.3,0.59991]
[1737055056439,3.2078,3335.0,3334.9,0.5998]
[1737055056842,4.4973,3335.0,3334.6,3.2078]
[1737055057137,3.8975,3335.0,3334.6,3.2078]
[1737055057341,4.49729,3335.0,3334.9,0.5998]
[1737055058034,3.8975,3335.0,3334.4,2.28670062]
[1737055058341,0.59984,3334.8,3334.7,0.59983]
[1737055058841,0.59982,3334.9,3334.8,0.59981]
[1737055059738,3.8975,3335.0,3334.5,1.207]
[1737055060044,0.59986,3334.6,3334.5,1.207]
[1737055060247,3.80766,3334.6,3334.5,1.207]
[1737055060440,3.80766,3334.6,3334.5,1.80687]
[1737055060839,0.59986,3334.6,3334.5,1.80687]
[1737055061045,3.80766,3334.6,3334.5,0.59987]
[1737055061441,3.2078,3334.6,3334.2,1.207]
[1737055061744,2.01919,3334.5,3334.4,0.59987]
[1737055061944,0.59991,3334.4,3334.3,0.59989]
[1737055064448,0.59991,3334.4,3334.3,0.85721555]
[1737055064638,0.59991,3334.4,3334.3,0.85723555]
[1737055064837,0.59991,3334.4,3334.3,0.59991]
[1737055065044,0.59991,3334.4,3334.3,0.85720265]
[1737055065244,2.01918,3334.5,3334.4,0.59989]
[1737055065439,2.01918,3334.5,3334.4,0.25729265]
[1737055068645,2.01918,3334.5,3334.4,0.85718265]
[1737055069353,2.01918,3334.5,3334.4,0.25729265]
[1737055069750,2.01918,3334.5,3334.4,0.85718265]
[1737055069952,2.01918,3334.5,3334.4,0.25729265]
[1737055070545,1.4193,3334.5,3334.4,0.25741418]
[1737055070750,2.01917,3334.5,3334.4,0.25741418]
[1737055072251,2.01917,3334.5,3334.4,0.85730418]
[1737055072453,2.01917,3334.5,3334.4,0.25741418]
[1737055072949,2.02120734,3334.5,3334.4,0.85730418]
[1737055073653,0.00203734,3334.5,3334.4,0.85730418]
[1737055073849,1.33650734,3334.5,3334.4,0.85730418]
[1737055074156,0.73663734,3334.5,3334.4,0.85730418]
[1737055074360,1.33650734,3334.5,3334.4,41.65730418]
[1737055074556,2.02900734,3334.5,3334.4,0.85730418]
[1737055075054,5.23680734,3334.5,3334.4,0.85730418]
[1737055075754,5.23680734,3334.5,3334.4,0.25741418]
[1737055076448,5.23680734,3334.5,3334.4,0.25744321]
[1737055078155,5.96240734,3334.5,3334.4,0.25744321]
[1737055079261,5.96240734,3334.5,3334.4,0.85733321]
[1737055079868,5.96240734,3334.5,3334.4,0.25744321]
[1737055081661,4.53530734,3334.5,3334.4,0.85733321]
[1737055082170,9.22330087,3334.5,3334.4,0.85733321]
[1737055082467,9.22330087,3334.5,3334.4,0.25744321]
[1737055083366,3.93543734,3334.5,3334.4,0.25746478]
[1737055083571,4.53530734,3334.5,3334.4,0.25746478]
[1737055084663,9.22330087,3334.5,3334.4,0.25746478]
[1737055086368,9.22330087,3334.5,3334.4,0.85735478]
[1737055086369,8.49770087,3334.5,3334.4,0.85735478]
[1737055086566,8.49770087,3334.5,3334.4,3.1440554]
[1737055086762,3.20983734,3334.5,3334.4,3.1440554]
[1737055087263,3.20983734,3334.5,3334.4,3.14415103]
[1737055087465,3.80970734,3334.5,3334.4,0.85745041]
[1737055087663,3.80970734,3334.5,3334.4,0.25756041]
[1737055089072,3.80970734,3334.5,3334.4,0.85745041]
[1737055089865,3.80970734,3334.5,3334.4,0.25756041]
[1737055090972,3.80970734,3334.5,3334.4,0.25749465]
[1737055093863,8.49770087,3334.5,3334.4,0.25749465]
[1737055094866,8.49770087,3334.5,3334.4,0.2570741]
[1737055095377,3.80970734,3334.5,3334.4,0.2570741]
[1737055097571,10.81555544,3334.5,3334.4,0.2570741]
[1737055097775,8.52885482,3334.5,3334.4,0.2570741]
[1737055098576,8.52885482,3334.5,3334.4,0.25708642]
[1737055098878,9.66615179,3334.5,3334.4,0.25708642]
[1737055099871,3.80970734,3334.5,3334.4,0.25708642]
[1737055100569,3.80970734,3334.5,3334.4,0.25708949]
[1737055102876,3.80970734,3334.5,3334.4,0.85697949]
[1737055103381,3.80970734,3334.5,3334.4,0.25708949]
[1737055104267,3.80970734,3334.5,3334.4,0.25704808]
[1737055104472,8.52995041,3334.5,3334.4,0.25704808]
[1737055106284,8.52995041,3334.5,3334.4,0.25711795]
[1737055106581,3.80970734,3334.5,3334.4,0.25711795]
[1737055108091,0.00203734,3334.5,3334.4,0.85700795]
[1737055108784,4.14290383,3334.5,3334.4,5.51838809]
[1737055108979,4.14290383,3334.5,3334.4,4.91849809]
[1737055109477,4.14290383,3334.5,3334.4,5.51838809]
[1737055109882,4.14290383,3334.5,3334.4,4.66138014]
[1737055110083,4.14290383,3334.5,3334.4,5.51831648]
[1737055110285,0.60190734,3334.5,3334.4,0.85693634]
[1737055113687,0.00203734,3334.5,3334.4,0.85693634]
[1737055113889,4.7214501,3334.6,3334.4,0.37484634]
[1737055114189,4.7214501,3334.6,3334.5,0.85691634]
[1737055114389,4.7214501,3334.7,3334.6,0.59986]
[1737055114585,4.7214501,3334.7,3334.6,6.35140696]
[1737055114980,5.3212901,3334.7,3334.6,6.35140696]
[1737055115187,5.3212901,3334.7,3334.6,4.06470634]
[1737055115377,4.7214501,3334.7,3334.6,4.06470634]
[1737055115583,0.59984,3334.7,3334.6,9.16471467]
[1737055115981,0.59983,3334.8,3334.7,0.59982]
[1737055116179,0.59983,3334.8,3334.7,1.61100459]
[1737055116989,0.59983,3334.8,3334.7,2.29330459]
[1737055117189,0.59983,3334.8,3334.7,0.93928459]
[1737055117489,0.59983,3334.8,3334.7,0.93931447]
[1737055118382,3.80763,3334.8,3334.7,0.93931447]
[1737055119688,0.59983,3334.8,3334.7,0.93931447]
[1737055119889,0.59983,3334.8,3334.7,1.53915447]
[1737055120286,4.13664128,3334.8,3334.7,1.53915447]
[1737055120488,3.53681128,3334.8,3334.7,1.53915447]
[1737055121292,4.13663128,3334.8,3334.7,1.53907952]
[1737055121492,0.59982,3334.8,3334.7,1.53907952]
[1737055121690,0.59981,3334.9,3334.8,0.5998]
[1737055121883,0.59981,3334.9,3334.8,0.85673952]
[1737055122791,4.13662128,3334.9,3334.8,0.85673952]
[1737055123195,4.13662128,3334.9,3334.8,0.85679418]
[1737055125092,0.59981,3334.9,3334.8,0.85679418]
[1737055125585,3.80761,3334.9,3334.8,0.25699418]
[1737055126495,7.34442128,3334.9,3334.8,0.25699418]
[1737055126994,7.34442128,3334.9,3334.8,0.25707507]
[1737055127394,3.80761,3334.9,3334.8,0.25707507]
[1737055128189,3.80761,3334.9,3334.8,0.85689507]
[1737055128190,3.8076,3334.9,3334.8,0.85689507]
[1737055128492,3.8076,3334.9,3334.8,0.25707507]
[1737055128896,3.8958,3334.9,3334.8,0.25712641]
[1737055129092,4.4956,3334.9,3334.8,0.25712641]
[1737055130795,3.8958,3334.9,3334.8,0.25718675]
[1737055130997,4.4956,3334.9,3334.8,0.25718675]
[1737055132196,9.2170501,3334.9,3334.8,0.25718675]
[1737055132697,8.6172501,3334.9,3334.8,0.25697113]
[1737055132996,9.2170501,3334.9,3334.8,0.25697113]
[1737055133389,4.4956,3334.9,3334.8,0.25697113]
[1737055136396,4.4956,3334.9,3334.8,0.25711075]
[1737055136597,4.4956,3334.9,3334.8,0.25714773]
[1737055137600,4.4956,3334.9,3334.8,0.85696773]
[1737055137796,4.4956,3334.9,3334.8,0.25714773]
[1737055138198,8.03139486,3334.9,3334.8,0.98894773]
[1737055138504,8.03139486,3334.9,3334.8,0.9889958]
[1737055139397,8.03139486,3334.9,3334.8,0.2571958]
[1737055141504,9.2170501,3334.9,3334.8,0.2571958]
[1737055145301,4.4956,3334.9,3334.8,0.2571958]
[1737055147309,3.8958,3334.9,3334.6,0.59985]
[1737055147511,0.59982,3334.8,3334.7,0.25718086]
[1737055147904,1.32382,3334.8,3334.7,0.25718086]
[1737055148597,4.86193039,3334.8,3334.7,0.25718086]
[1737055151113,4.86193039,3334.8,3334.6,1.07960423]
[1737055151319,4.86193039,3334.8,3334.7,0.25724444]
[1737055152929,4.13793039,3334.8,3334.7,0.25724444]
[1737055153127,4.13793039,3334.8,3334.7,0.97584444]
[1737055153423,4.13793039,3334.8,3334.7,41.77584444]
[1737055154025,4.13793039,3334.8,3334.7,0.25724444]
[1737055154827,4.13793039,3334.8,3334.7,1.33684867]
[1737055155033,4.13793039,3334.8,3334.7,1.93657627]
[1737055156223,4.13793039,3334.8,3334.7,1.33673627]
[1737055156429,4.13793039,3334.8,3334.7,1.93657627]
[1737055156625,4.13793039,3334.8,3334.7,0.25713204]
[1737055158024,1.27932,3334.8,3334.7,0.25713204]
[1737055158735,0.6795,3334.8,3334.7,0.25713373]
[1737055158929,6.0007701,3334.8,3334.7,0.25713373]
[1737055161137,6.0007701,3334.8,3334.7,1.33673796]
[1737055161433,5.3212701,3334.8,3334.7,1.93657796]
[1737055162435,5.3212701,3334.8,3334.7,1.33673796]
[1737055162636,2.96024694,3334.8,3334.7,6.43941214]
[1737055162932,4.36894694,3334.8,3334.7,6.43941214]
[1737055163935,1.31182,3334.8,3334.7,1.93643398]
[1737055164127,1.31182,3334.8,3334.7,0.25698975]
[1737055164334,1.31182,3334.8,3334.7,1.33659398]
[1737055164523,1.31182,3334.8,3334.7,1.93643398]
[1737055164730,4.85268488,3334.8,3334.7,6.61687774]
[1737055164932,4.85268488,3334.8,3334.7,6.61688775]
[1737055165130,4.14068488,3334.8,3334.7,6.61688775]
[1737055165730,4.14068488,3334.8,3334.7,11.72019014]
[1737055167439,4.14068488,3334.8,3334.7,6.61688775]
[1737055168744,0.59982,3334.8,3334.7,6.61688775]
[1737055169238,4.14067488,3334.9,3334.8,0.59982]
[1737055169541,4.14067488,3334.9,3334.8,0.85681976]
[1737055170232,0.59981,3334.9,3334.8,5.53726352]
[1737055170937,4.14066488,3335.0,3334.9,0.5998]
[1737055171139,4.14066488,3335.0,3334.9,1.93640399]
[1737055171334,4.14066488,3335.0,3334.9,2.68600399]
[1737055171736,0.5998,3335.0,3334.9,2.68600399]
[1737055171933,3.54086488,3335.1,3335.0,0.59978]
[1737055172138,3.54086488,3335.1,3335.0,0.85677976]
[1737055173240,3.54086488,3335.2,3335.1,0.59977]
[1737055173442,3.54086488,3335.2,3335.1,1.59436976]
[1737055174538,0.59971,3335.5,3335.1,0.99459976]
[1737055174539,2.9580789,3335.5,3335.1,0.99459976]
[1737055174743,2.9580789,3335.5,3335.4,1.67931423]
[1737055174948,2.3583689,3335.5,3335.4,1.93631399]
[1737055175242,2.9580689,3335.5,3335.4,1.93631399]
[1737055175443,2.3583689,3335.5,3335.4,1.93631399]
[1737055175646,2.9580689,3335.5,3335.4,1.93631399]
[1737055175946,6.74866488,3335.6,3335.4,1.93631399]
[1737055175947,6.1658589,3335.6,3335.5,0.5997]
[1737055176139,6.1658589,3335.6,3335.5,2.06069976]
[1737055176445,6.1658589,3335.6,3335.5,2.79379976]
[1737055176737,5.5661689,3335.6,3335.5,2.79379976]
[1737055177045,6.1658489,3335.6,3335.5,2.79379976]
[1737055177342,0.1059689,3335.6,3335.5,8.87340399]
[1737055177545,0.1059689,3335.7,3335.6,0.59968]
[1737055177740,0.1059689,3335.7,3335.6,1.93628399]
[1737055177937,0.1059689,3335.7,3335.6,6.93628399]
[1737055178139,0.1059689,3335.7,3335.6,47.73470362]
[1737055178738,0.1059689,3335.7,3335.6,42.73470362]
[1737055179042,1.3952,3336.0,3335.6,46.79156535]
[1737055179243,1.29297,3336.3,3336.2,0.59957]
[1737055179438,0.59957,3336.3,3336.2,3.13328622]
[1737055179642,3.54086488,3336.4,3336.2,2.53343315]
[1737055179949,2.04005,3336.4,3336.3,0.85468632]
[1737055180741,2.76235,3336.4,3336.3,0.25513632]
[1737055181548,0.59955,3336.4,3336.3,0.85455724]
[1737055181749,2.06555,3336.4,3336.3,0.85455724]
[1737055182647,0.001,3336.4,3336.3,2.05855724]
[1737055185449,0.001,3336.4,3336.3,2.05814882]
[1737055188644,0.60053,3336.4,3336.3,0.25459882]
[1737055188844,0.60053,3336.4,3336.3,1.45759882]
[1737055190246,0.59961,3336.0,3335.9,2.87790683]
[1737055190448,3.2078,3336.1,3335.8,0.59964]
[1737055190645,1.29422,3335.9,3335.8,1.80264]
[1737055192251,1.29423,3335.9,3335.8,0.59964]
[1737055193651,0.59966,3335.7,3335.6,40.8]
[1737055193849,0.59966,3335.7,3335.6,41.39968]
[1737055194051,0.59966,3335.7,3335.5,1.203]
[1737055194052,0.59971,3335.4,3335.3,6.08580683]
[1737055194251,0.7441,3335.8,3335.3,6.68909683]
[1737055194446,0.59968,3335.6,3335.5,0.59968]
[1737055195054,0.7441,3335.8,3335.3,6.68909683]
[1737055195255,1.34376,3335.8,3335.7,0.59966]
[1737055196656,2.02086,3335.8,3335.7,0.59966]
[1737055196857,1.4212,3335.8,3335.7,0.59966]
[1737055198859,1.4212,3335.8,3335.7,41.39966]
[1737055199350,1.4212,3335.8,3335.7,0.59966]
[1737055199853,1.4212,3335.8,3335.3,3.80751]
[1737055200060,0.59977,3335.1,3335.0,2.87807683]
[1737055200262,3.2078,3335.3,3335.0,3.48129683]
[1737055200451,1.3631,3335.2,3335.0,1.203]
[1737055200651,1.3631,3335.2,3335.0,1.80278]
[1737055200652,0.59977,3335.1,3335.0,1.80278]
[1737055200856,2.0438,3335.2,3335.1,0.59977]
[1737055201057,2.0438,3335.2,3335.1,2.87806683]
[1737055203963,0.59969,3335.6,3335.5,0.59968]
[1737055204261,2.72749,3335.6,3335.5,0.59968]
[1737055204663,0.59973,3335.4,3335.1,2.27829683]
[1737055204864,0.59973,3335.4,3335.3,0.59973]
[1737055205266,0.59971,3335.5,3335.4,0.5997]
[1737055205460,2.7275,3335.6,3335.5,0.5997]
[1737055205662,2.1278,3335.6,3335.1,2.27829683]
[1737055205965,0.59972,3335.5,3335.4,0.59971]
[1737055208465,0.59975,3335.3,3335.2,0.59973]
[1737055211159,0.59986,3334.6,3334.5,5.25641173]
[1737055211358,3.80766,3334.6,3334.5,4.65654173]
[1737055213269,3.80766,3334.6,3334.1,2.27829683]
[1737055213270,3.2078,3334.6,3334.1,2.27829683]
[1737055213474,1.3591,3334.8,3333.8,4.65654173]
[1737055213475,0.59998,3333.9,3333.8,4.65654173]
[1737055214763,0.59998,3333.9,3333.8,5.25654173]
[1737055214969,0.6,3333.8,3333.7,2.87830683]
[1737055216368,0.6,3333.8,3333.7,2.27829683]
[1737055217179,0.60002,3333.7,3333.6,1.204]
[1737055217377,0.7185,3334.0,3333.5,44.0078]
[1737055217677,0.60004,3333.6,3333.5,42.60404]
[1737055218079,0.60004,3333.6,3333.5,40.8]
[1737055218270,0.60004,3333.6,3333.5,42.004]
[1737055218766,3.80784,3333.7,3333.6,0.60004]
[1737055218971,0.60004,3333.6,3333.5,42.60404]
[1737055219273,0.7185,3334.0,3333.5,42.004]
[1737055219575,4.664,3334.1,3334.0,0.59996]
[1737055219576,3.2078,3334.1,3334.0,0.59996]
[1737055220079,3.2078,3334.1,3334.0,42.13026]
[1737055223680,0.6916,3334.4,3334.2,0.59991]
[1737055223681,0.59992,3334.3,3334.2,0.59991]
[1737055226483,1.2915,3334.4,3334.3,0.59991]
[1737055226982,0.59993,3334.3,3334.2,0.59993]
[1737055227185,0.6916,3334.4,3334.0,41.5303]
[1737055227384,0.59995,3334.1,3334.0,1.33025]
[1737055228880,0.59996,3334.1,3334.0,0.59995]
[1737055229585,0.59996,3334.0,3333.9,1.80297]
[1737055229782,1.29966,3334.0,3333.9,1.80297]
[1737055230186,0.59998,3333.9,3333.8,3.80779]
[1737055231584,0.6997,3334.0,3333.9,0.59998]
[1737055232290,0.6997,3334.0,3333.9,41.39998]
[1737055232887,1.28173,3334.2,3334.1,0.59995]
[1737055233083,0.6818,3334.2,3334.1,0.59995]
[1737055233385,1.31862,3334.3,3334.2,0.59993]
[1737055233588,0.59998,3333.9,3333.8,3.80778]
[1737055233886,0.59998,3333.9,3333.8,44.60778]
[1737055234090,0.59998,3333.9,3333.8,3.2078]
[1737055234291,3.2078,3334.1,3333.7,0.7086]
[1737055234486,1.2941,3333.8,3333.7,1.30861]
[1737055235191,0.6941,3333.8,3333.6,1.80303]
[1737055235386,2.05302,3333.7,3333.6,1.80303]
[1737055235788,1.453,3333.7,3333.6,1.80303]
[1737055236190,1.453,3333.7,3333.6,42.60303]
[1737055236991,1.454,3333.7,3333.6,42.60303]
[1737055237301,0.7063,3333.7,3333.6,42.60303]
[1737055238094,0.7063,3333.7,3333.6,1.80303]
[1737055238491,0.7063,3333.7,3333.6,42.60303]
[1737055241699,0.7063,3333.7,3333.6,41.40003]
[1737055241902,0.7063,3333.7,3333.6,42.60303]
[1737055245100,0.001,3333.7,3333.6,44.88132683]
[1737055246005,0.001,3333.7,3333.6,46.19410091]
[1737055246203,0.001,3333.7,3333.6,51.3461108]
[1737055246404,1.3235,3334.4,3334.3,0.59991]
[1737055247106,0.7236,3334.4,3334.3,0.59991]
[1737055247708,1.32349,3334.4,3334.3,0.59991]
[1737055248006,1.32349,3334.4,3334.1,0.59993]
[1737055248007,0.59994,3334.2,3334.1,0.59993]
[1737055248205,3.80774,3334.2,3334.1,0.59993]
[1737055249407,0.59995,3334.1,3334.0,1.80295]
[1737055249602,1.3028,3334.1,3334.0,1.80295]
[1737055249802,0.6207,3334.1,3334.0,1.80295]
[1737055250601,0.6207,3334.1,3334.0,0.59995]
[1737055251007,1.22065,3334.1,3334.0,0.59995]
[1737055252104,0.6207,3334.1,3333.9,1.203]
[1737055252297,0.59996,3334.0,3333.9,1.80298]
[1737055252802,0.6207,3334.1,3333.6,1.80302]
[1737055252803,0.60003,3333.7,3333.6,1.80302]
[1737055253002,0.60003,3333.7,3333.6,0.60002]
[1737055254413,1.90293,3333.7,3333.6,0.60002]
[1737055255104,1.3029,3333.7,3333.6,0.60002]
[1737055256506,1.90292,3333.7,3333.6,0.60002]
[1737055257316,1.3029,3333.7,3333.6,0.60002]
[1737055257614,1.90292,3333.7,3333.6,0.60002]
[1737055258607,1.90292,3333.7,3333.5,4.66678853]
[1737055258608,1.3029,3333.7,3333.5,4.66678853]
[1737055258809,0.60005,3333.5,3333.4,4.66678853]
[1737055259011,0.60005,3333.5,3333.4,2.60518853]
[1737055259216,0.60009,3333.3,3333.2,7.02066565]
[1737055259410,6.08618683,3333.3,3333.2,0.89656565]
[1737055259718,11.08618683,3333.3,3333.2,0.06576565]
[1737055260716,0.6002,3332.7,3332.6,0.60022]
[1737055261013,3.2078,3332.7,3332.4,1.8263]
[1737055261312,0.60023,3332.5,3332.4,1.8263]
[1737055261617,0.6003,3332.2,3332.1,0.60029]
[1737055261818,0.6003,3332.2,3332.1,1.24311]
[1737055262710,3.2078,3332.3,3332.1,0.6428]
[1737055262913,3.80808,3332.3,3332.2,0.60029]
[1737055264319,3.2078,3332.3,3332.1,0.6428]
[1737055264620,0.60029,3332.2,3332.1,1.24311]
[1737055265220,0.60029,3332.2,3332.1,0.6428]
[1737055265520,0.60029,3332.2,3332.1,1.24311]
[1737055265817,0.60029,3332.2,3332.1,0.6428]
[1737055266413,0.60029,3332.2,3332.1,1.24311]
[1737055266608,3.2078,3332.3,3332.1,0.6428]
[1737055266808,3.2078,3332.3,3332.2,0.60029]
[1737055267011,3.2078,3332.7,3332.6,0.60022]
[1737055267318,3.2078,3332.7,3332.6,1.80322]
[1737055267510,3.2078,3332.7,3332.6,42.60322]
[1737055267717,3.53503615,3332.8,3332.7,0.6002]
[1737055268017,3.53503615,3332.8,3332.7,1.2503]
[1737055268515,3.53503615,3332.8,3331.9,3.2078]
[1737055268717,0.60029,3332.2,3332.1,0.6501]
[1737055269512,0.60037,3331.8,3331.6,0.6004]
[1737055269716,0.60037,3331.8,3331.7,0.60038]
[1737055269923,2.27829683,3332.0,3331.6,42.6531]
[1737055270115,3.2078,3331.9,3331.6,42.6531]
[1737055270421,0.60038,3331.7,3331.6,2.45349]
[1737055270921,0.60038,3331.7,3331.6,1.8531]
[1737055271622,0.60038,3331.7,3331.6,0.6501]
[1737055271623,2.87867683,3331.7,3331.6,0.6501]
[1737055275321,0.60038,3331.7,3331.6,0.6501]
[1737055276624,2.87867683,3331.7,3331.6,0.6501]
[1737055279124,3.2078,3332.4,3332.2,0.60027]
[1737055279429,3.2078,3332.4,3332.3,1.53697]
[1737055280330,3.80805,3332.4,3332.3,1.53697]
[1737055282028,3.80805,3332.4,3332.3,0.9367]
[1737055282229,3.80805,3332.4,3332.3,0.48]
[1737055284121,0.60034,3331.9,3331.8,1.05955]
[1737055284318,3.80814,3331.9,3331.8,1.05955]
[1737055284823,3.80814,3331.9,3331.8,0.4592]
[1737055285023,6.08643683,3331.9,3331.8,0.4592]
[1737055285219,3.80814,3331.9,3331.8,0.4592]
[1737055285631,3.2078,3331.9,3331.8,1.05956]
[1737055285824,0.60033,3332.0,3331.9,0.60034]
[1737055287527,0.60034,3331.9,3331.8,1.05955]
[1737055287728,6.08643683,3331.9,3331.8,0.4592]
[1737055287934,0.60042,3331.5,3331.4,0.4605]
[1737055288132,0.60042,3331.5,3331.4,0.9507]
[1737055288331,3.80822,3331.5,3331.4,0.9507]
[1737055294334,3.80822,3331.5,3331.4,1.55113]
[1737055295531,3.80822,3331.5,3331.4,0.9507]
[1737055297940,3.80822,3331.5,3331.4,1.55113]
[1737055298533,3.80822,3331.5,3331.4,0.9507]
[1737055299839,3.80822,3331.5,3331.4,1.55113]
[1737055300938,0.60042,3331.5,3331.4,1.55113]
[1737055301238,0.60041,3331.7,3331.6,0.60037]
[1737055302843,0.60037,3331.8,3331.7,0.60036]
[1737055303036,6.12761404,3332.2,3331.6,0.4759]
[1737055303340,6.12761404,3332.2,3331.8,0.60033]
[1737055303341,0.60035,3331.9,3331.8,0.60033]
[1737055303744,2.34854721,3332.2,3331.6,0.4759]
[1737055303944,0.60035,3332.0,3331.9,0.60032]
[1737055304530,0.60035,3332.0,3331.9,1.07632]
[1737055304731,2.34854721,3332.2,3331.9,0.476]
[1737055304939,6.74283615,3332.4,3332.2,0.60029]
[1737055304940,0.60028,3332.3,3332.2,0.60029]
[1737055305242,5.55634721,3332.4,3332.0,0.4671]
[1737055305243,5.55634721,3332.4,3332.1,40.8]
[1737055305436,5.55634721,3332.4,3332.3,0.60027]
[1737055305437,4.79144721,3332.4,3332.3,0.60027]
[1737055305846,2.34854721,3332.4,3332.3,0.60027]
[1737055306139,2.34854721,3332.7,3332.2,0.4867]
[1737055306448,0.60025,3332.5,3332.4,0.60023]
[1737055308539,0.60027,3332.4,3332.3,0.60026]
[1737055309735,2.34854721,3332.7,3332.3,0.60026]
[1737055309938,0.60025,3332.5,3332.4,0.60024]
[1737055312046,0.60027,3332.4,3332.3,0.60027]
[1737055312541,7.83464404,3332.6,3332.0,0.4671]
[1737055312746,0.60031,3332.1,3332.0,1.06742]
[1737055312942,0.60031,3332.1,3332.0,1.06743]
[1737055313347,0.60031,3332.1,3332.0,0.4671]
[1737055313954,0.60031,3332.1,3332.0,1.06743]
[1737055314246,0.60031,3332.1,3332.0,0.4671]
[1737055315350,0.60031,3332.1,3332.0,1.06743]
[1737055315551,0.60031,3332.1,3332.0,0.4671]
[1737055320054,2.94885721,3332.1,3332.0,0.4671]
[1737055322251,2.34854721,3332.1,3331.5,0.498]
[1737055322445,0.60047,3331.2,3331.1,7.5954964]
[1737055322652,0.60047,3331.2,3331.1,9.6394164]
[1737055322851,0.60047,3331.2,3331.1,10.2399064]
[1737055324158,0.60047,3331.2,3331.1,3.24489]
[1737055324957,0.60047,3331.2,3331.1,2.6444]
[1737055325157,0.60047,3331.2,3331.1,0.939]
[1737055327560,3.2078,3331.3,3331.1,0.939]
[1737055327764,2.34854721,3331.4,3331.2,0.4889]
[1737055327955,2.94899721,3331.4,3331.3,0.60045]
[1737055328360,0.60045,3331.4,3331.3,0.60045]
[1737055328963,2.34854721,3331.5,3331.2,0.4889]
[1737055329156,2.34854721,3331.5,3331.4,0.60043]
[1737055329356,1.57934721,3331.5,3331.4,0.60043]
[1737055329659,0.81444721,3331.7,3331.6,0.6004]
[1737055329864,1.41482721,3331.7,3331.6,1.8034]
[1737055330354,1.41482721,3331.7,3331.6,1.203]
[1737055330554,3.80818,3331.7,3331.6,1.203]
[1737055330771,4.04128,3331.7,3331.6,1.203]
[1737055331854,3.4409,3331.7,3331.1,1.07149]
[1737055332163,2.27829683,3331.4,3330.9,5.01132]
[1737055332360,0.60051,3331.0,3330.9,4.4108]
[1737055332562,0.60051,3331.0,3330.9,5.01132]
[1737055333160,0.60051,3331.0,3330.9,1.80352]
[1737055333659,0.60051,3331.0,3330.9,1.203]
[1737055333867,0.60051,3331.0,3330.9,1.80352]
[1737055334261,0.60053,3331.0,3330.9,0.60051]
[1737055334768,0.60054,3330.8,3330.7,0.9757]
[1737055335066,2.87883683,3330.8,3330.7,0.9757]
[1737055336368,2.87883683,3330.8,3330.7,0.5071]
[1737055336965,0.60065,3330.2,3330.1,0.9582]
[1737055337162,2.87894683,3330.2,3330.1,0.4806]
[1737055338162,2.87894683,3330.2,3330.1,1.08127]
[1737055338163,0.60065,3330.2,3330.1,1.08127]
[1737055338372,0.60065,3330.2,3330.1,0.4806]
[1737055338761,2.27829683,3330.2,3329.4,3.2078]
[1737055338962,2.27829683,3330.0,3329.5,0.4778]
[1737055339163,0.60076,3329.6,3329.5,0.4778]
[1737055339474,0.60076,3329.6,3329.5,1.07858]
[1737055339765,5.48609683,3330.0,3329.5,0.4778]
[1737055339967,0.60076,3329.6,3329.5,0.4778]
[1737055341466,3.80856,3329.6,3329.5,0.4778]
[1737055341769,0.60079,3329.4,3329.3,0.4906]
[1737055341966,2.87908683,3329.4,3329.3,0.4906]
[1737055342672,0.60083,3329.2,3329.1,0.4755]
[1737055342867,0.60088,3328.9,3328.8,1.6767]
[1737055343165,0.6009,3328.8,3328.7,0.4755]
[1737055343360,0.60099,3328.3,3328.2,0.4737]
[1737055343566,0.60103,3328.1,3328.0,0.4755]
[1737055344166,2.27829683,3328.3,3327.9,6.9950164]
[1737055344167,0.60105,3328.0,3327.9,6.9950164]
[1737055344362,2.87934683,3328.0,3327.9,6.9950164]
[1737055344765,2.27829683,3328.0,3327.6,0.4737]
[1737055344967,0.6011,3327.7,3327.6,0.4737]
[1737055345369,2.27829683,3327.7,3327.0,1.203]
[1737055345564,0.60117,3327.3,3326.9,7.5962464]
[1737055345780,2.27829683,3327.4,3326.9,6.9950164]
[1737055346076,2.27829683,3327.4,3326.8,0.945]
[1737055346077,0.60123,3327.0,3326.8,0.945]
[1737055346278,0.60125,3326.9,3326.8,0.945]
[1737055346872,2.87946683,3327.4,3326.8,0.945]
[1737055347068,0.60116,3327.4,3326.8,0.945]
[1737055347269,3.80895,3327.5,3327.1,0.6012]
[1737055347469,3.2078,3327.5,3327.3,0.60117]
[1737055347661,5.48609683,3327.9,3327.0,3.2078]
[1737055347865,5.48609683,3327.9,3327.2,0.60118]